[Event "Titled Tuesday Blitz March 07 Early 2023"]
[White "Szyszylo, Rafal"]
[Black "Necula, Iulian"]
[WhiteFideId "1109626"]
[BlackFideId "1232380"]
[WhiteElo "1951"]
[BlackElo "1790"]
[Result "1-0"]
[Round "02"]
[TimeControl "180+2"]
[Date "2023.03.07"]
[WhiteClock "0:00:28"]
[BlackClock "0:00:11"]

1. e4 {[%clk 0:02:57]}  c5 {[%clk 0:03:00]} 2. Nf3 {[%clk 0:02:57]}  d6 {[%clk 0:02:59]} 3. d4 {[%clk 0:02:57]}  cxd4 {[%clk 0:02:59]} 4. Nxd4 {[%clk 0:02:58]}  Nf6 {[%clk 0:03:00]} 5. Nc3 {[%clk 0:02:58]}  g6 {[%clk 0:03:01]} 6. f3 {[%clk 0:02:57]}  Nc6 {[%clk 0:03:01]} 7. Be3 {[%clk 0:02:57]}  h5 {[%clk 0:03:00]} 8. Qd2 {[%clk 0:02:57]}  Nxd4 {[%clk 0:03:00]} 9. Bxd4 {[%clk 0:02:56]}  Bh6 {[%clk 0:03:00]} 10. Be3 {[%clk 0:02:56]}  Bxe3 {[%clk 0:02:59]} 11. Qxe3 {[%clk 0:02:56]}  Be6 {[%clk 0:02:59]} 12. O-O-O {[%clk 0:02:55]}  Qa5 {[%clk 0:02:56]} 13. Kb1 {[%clk 0:02:53]}  Rc8 {[%clk 0:02:56]} 14. a3 {[%clk 0:02:53]}  h4 {[%clk 0:02:52]} 15. Bb5+ {[%clk 0:02:48]}  Kf8 {[%clk 0:02:51]} 16. Be2 {[%clk 0:02:40]}  Rc6 {[%clk 0:02:35]} 17. Rd4 {[%clk 0:01:53]}  Kg7 {[%clk 0:02:32]} 18. Ra4 {[%clk 0:01:53]}  Qc7 {[%clk 0:02:30]} 19. Rxa7 {[%clk 0:01:48]}  Rc8 {[%clk 0:02:20]} 20. Nb5 {[%clk 0:01:40]}  Qb8 {[%clk 0:02:15]} 21. Nd4 {[%clk 0:01:40]}  Rc5 {[%clk 0:02:01]} 22. Ra4 {[%clk 0:01:35]}  b5 {[%clk 0:01:55]} 23. Rb4 {[%clk 0:01:34]}  Bc4 {[%clk 0:01:51]} 24. Bxc4 {[%clk 0:01:26]}  Rxc4 {[%clk 0:01:52]} 25. Rxb5 {[%clk 0:01:26]}  Qa7 {[%clk 0:01:50]} 26. c3 {[%clk 0:01:24]}  Qd7 {[%clk 0:01:44]} 27. Rb4 {[%clk 0:01:23]}  R4c5 {[%clk 0:01:40]} 28. Rd1 {[%clk 0:01:19]}  h3 {[%clk 0:01:38]} 29. g4 {[%clk 0:01:19]}  Rh8 {[%clk 0:00:45]} 30. g5 {[%clk 0:01:17]}  Nh5 {[%clk 0:00:42]} 31. f4 {[%clk 0:01:12]}  Qg4 {[%clk 0:00:40]} 32. Rg1 {[%clk 0:01:10]}  Qxf4 {[%clk 0:00:39]} 33. Qxf4 {[%clk 0:00:58]}  Nxf4 {[%clk 0:00:39]} 34. Rb7 {[%clk 0:00:57]}  Re8 {[%clk 0:00:37]} 35. Nf3 {[%clk 0:00:53]}  Rc4 {[%clk 0:00:34]} 36. Re1 {[%clk 0:00:49]}  Nd3 {[%clk 0:00:31]} 37. Re3 {[%clk 0:00:47]}  Nc5 {[%clk 0:00:30]} 38. Rb4 {[%clk 0:00:44]}  Rxb4 {[%clk 0:00:28]} 39. cxb4 {[%clk 0:00:45]}  Ne6 {[%clk 0:00:27]} 40. b5 {[%clk 0:00:43]}  Rb8 {[%clk 0:00:25]} 41. a4 {[%clk 0:00:43]}  Nc5 {[%clk 0:00:25]} 42. b3 {[%clk 0:00:42]}  e6 {[%clk 0:00:16]} 43. Nd4 {[%clk 0:00:40]}  d5 {[%clk 0:00:15]} 44. exd5 {[%clk 0:00:38]}  exd5 {[%clk 0:00:16]} 45. Nc6 {[%clk 0:00:39]}  Rb7 {[%clk 0:00:16]} 46. Rxh3 {[%clk 0:00:37]}  Ne4 {[%clk 0:00:14]} 47. Rd3 {[%clk 0:00:32]}  Nxg5 {[%clk 0:00:13]} 48. Rxd5 {[%clk 0:00:33]}  Nf3 {[%clk 0:00:13]} 49. h3 {[%clk 0:00:29]}  f5 {[%clk 0:00:14]} 50. a5 {[%clk 0:00:28]}  Ng5 {[%clk 0:00:11]} 51. a6 {[%clk 0:00:28]}  Rb6 {[%clk 0:00:11]} 52. a7 {[%clk 0:00:28]} 1-0


[Site "https://www.chess.com"]

[Event "Titled Tuesday Blitz March 07 Early 2023"]
[White "Vanek, Tomas"]
[Black "Ansh M Shah"]
[WhiteFideId "313459"]
[BlackFideId "25033379"]
[WhiteElo "2052"]
[BlackElo "2084"]
[Result "0-1"]
[Round "02"]
[TimeControl "180+2"]
[Date "2023.03.07"]
[WhiteClock "0:00:09"]
[BlackClock "0:00:20"]

1. d4 {[%clk 0:03:00]}  Nf6 {[%clk 0:02:59]} 2. Bg5 {[%clk 0:02:59]}  e6 {[%clk 0:03:00]} 3. e4 {[%clk 0:02:58]}  Be7 {[%clk 0:03:00]} 4. e5 {[%clk 0:02:55]}  Nd5 {[%clk 0:03:00]} 5. Bd2 {[%clk 0:02:55]}  c5 {[%clk 0:03:00]} 6. c4 {[%clk 0:02:47]}  Nb6 {[%clk 0:03:00]} 7. Qg4 {[%clk 0:02:37]}  g6 {[%clk 0:02:39]} 8. Bh6 {[%clk 0:02:32]}  cxd4 {[%clk 0:02:38]} 9. Nf3 {[%clk 0:02:12]}  Nc6 {[%clk 0:02:37]} 10. Bd3 {[%clk 0:02:11]}  Nb4 {[%clk 0:02:23]} 11. Qxd4 {[%clk 0:02:07]}  Bc5 {[%clk 0:01:57]} 12. Qe4 {[%clk 0:01:55]}  d5 {[%clk 0:01:54]} 13. cxd5 {[%clk 0:01:51]}  Nxd3+ {[%clk 0:01:19]} 14. Qxd3 {[%clk 0:01:48]}  Qxd5 {[%clk 0:01:20]} 15. Qxd5 {[%clk 0:01:42]}  Nxd5 {[%clk 0:01:20]} 16. Nc3 {[%clk 0:01:40]}  Nxc3 {[%clk 0:01:18]} 17. bxc3 {[%clk 0:01:39]}  Bd7 {[%clk 0:01:19]} 18. O-O {[%clk 0:01:34]}  O-O-O {[%clk 0:01:18]} 19. Bg5 {[%clk 0:01:29]}  Rdf8 {[%clk 0:01:15]} 20. Bf6 {[%clk 0:01:28]}  Rhg8 {[%clk 0:01:15]} 21. Ng5 {[%clk 0:01:26]}  h6 {[%clk 0:01:15]} 22. Ne4 {[%clk 0:01:25]}  Ba3 {[%clk 0:01:12]} 23. Rab1 {[%clk 0:01:20]}  Bc6 {[%clk 0:01:12]} 24. Rb3 {[%clk 0:01:03]}  Bxe4 {[%clk 0:01:00]} 25. Rxa3 {[%clk 0:01:02]}  a6 {[%clk 0:01:00]} 26. Be7 {[%clk 0:00:59]}  Re8 {[%clk 0:00:58]} 27. Bd6 {[%clk 0:00:59]}  Bc6 {[%clk 0:00:53]} 28. Rb1 {[%clk 0:00:56]}  Rd8 {[%clk 0:00:52]} 29. Rb6 {[%clk 0:00:55]}  f6 {[%clk 0:00:48]} 30. Raxa6 {[%clk 0:00:46]}  bxa6 {[%clk 0:00:39]} 31. Rxc6+ {[%clk 0:00:46]}  Kb7 {[%clk 0:00:40]} 32. Rc7+ {[%clk 0:00:44]}  Kb6 {[%clk 0:00:40]} 33. h4 {[%clk 0:00:39]}  fxe5 {[%clk 0:00:32]} 34. Bxe5 {[%clk 0:00:39]}  Rd5 {[%clk 0:00:29]} 35. Bf4 {[%clk 0:00:35]}  g5 {[%clk 0:00:29]} 36. Re7 {[%clk 0:00:10]}  gxf4 {[%clk 0:00:25]} 37. Rxe6+ {[%clk 0:00:11]}  Kb5 {[%clk 0:00:18]} 38. Rxh6 {[%clk 0:00:11]}  f3 {[%clk 0:00:18]} 39. g3 {[%clk 0:00:11]}  Rd1+ {[%clk 0:00:18]} 40. Kh2 {[%clk 0:00:11]}  Rf1 {[%clk 0:00:19]} 41. Rg6 {[%clk 0:00:10]}  Rxf2+ {[%clk 0:00:17]} 42. Kg1 {[%clk 0:00:10]}  Rg2+ {[%clk 0:00:18]} 43. Kf1 {[%clk 0:00:10]}  Rxg6 {[%clk 0:00:18]} 44. h5 {[%clk 0:00:11]}  R6xg3 {[%clk 0:00:18]} 45. c4+ {[%clk 0:00:12]}  Kxc4 {[%clk 0:00:18]} 46. a4 {[%clk 0:00:10]}  Rh3 {[%clk 0:00:19]} 47. h6 {[%clk 0:00:09]}  Rh1# {[%clk 0:00:20]} 0-1


[Site "https://www.chess.com"]

[Event "Titled Tuesday Blitz March 07 Early 2023"]
[White "Begunov, Konstantin"]
[Black "Tharushi, T H D Niklesha"]
[WhiteFideId "4118510"]
[BlackFideId "9918264"]
[WhiteElo "2079"]
[BlackElo "1596"]
[Result "1-0"]
[Round "02"]
[TimeControl "180+2"]
[Date "2023.03.07"]
[WhiteClock "0:00:26"]
[BlackClock "0:00:16"]

1. d4 {[%clk 0:02:59]}  Nf6 {[%clk 0:02:59]} 2. c4 {[%clk 0:02:58]}  e6 {[%clk 0:02:59]} 3. Nf3 {[%clk 0:02:58]}  Bb4+ {[%clk 0:02:59]} 4. Nbd2 {[%clk 0:02:58]}  b6 {[%clk 0:02:57]} 5. a3 {[%clk 0:02:58]}  Bb7 {[%clk 0:02:56]} 6. axb4 {[%clk 0:02:57]}  Qe7 {[%clk 0:02:53]} 7. c5 {[%clk 0:02:53]}  O-O {[%clk 0:02:46]} 8. g3 {[%clk 0:02:51]}  Nd5 {[%clk 0:02:42]} 9. Qb3 {[%clk 0:02:42]}  Na6 {[%clk 0:02:36]} 10. b5 {[%clk 0:02:35]}  Nb8 {[%clk 0:02:25]} 11. Qc2 {[%clk 0:02:24]}  bxc5 {[%clk 0:02:17]} 12. dxc5 {[%clk 0:02:21]}  a6 {[%clk 0:02:15]} 13. e4 {[%clk 0:02:07]}  Nb4 {[%clk 0:02:10]} 14. Qc3 {[%clk 0:02:05]}  a5 {[%clk 0:02:05]} 15. Bg2 {[%clk 0:01:51]}  Qxc5 {[%clk 0:01:58]} 16. Qxc5 {[%clk 0:01:48]}  Nd3+ {[%clk 0:01:58]} 17. Ke2 {[%clk 0:01:46]}  Nxc5 {[%clk 0:01:59]} 18. Nd4 {[%clk 0:01:36]}  a4 {[%clk 0:01:47]} 19. b4 {[%clk 0:01:17]}  axb3 {[%clk 0:01:39]} 20. Rxa8 {[%clk 0:01:17]}  Bxa8 {[%clk 0:01:39]} 21. N4xb3 {[%clk 0:01:16]}  Na4 {[%clk 0:01:39]} 22. Ba3 {[%clk 0:01:10]}  d6 {[%clk 0:01:37]} 23. Rc1 {[%clk 0:01:08]}  Rc8 {[%clk 0:01:22]} 24. Bxd6 {[%clk 0:01:03]}  c6 {[%clk 0:01:15]} 25. e5 {[%clk 0:00:54]}  Nb6 {[%clk 0:01:04]} 26. Bxb8 {[%clk 0:00:50]}  Rxb8 {[%clk 0:01:03]} 27. bxc6 {[%clk 0:00:50]}  Rc8 {[%clk 0:01:02]} 28. Na5 {[%clk 0:00:46]}  Nd5 {[%clk 0:01:00]} 29. Bxd5 {[%clk 0:00:44]}  exd5 {[%clk 0:00:58]} 30. Ndb3 {[%clk 0:00:41]}  Kf8 {[%clk 0:00:51]} 31. Nd4 {[%clk 0:00:41]}  Ke7 {[%clk 0:00:50]} 32. f4 {[%clk 0:00:41]}  Kd8 {[%clk 0:00:48]} 33. Rc5 {[%clk 0:00:41]}  Kc7 {[%clk 0:00:46]} 34. Rxd5 {[%clk 0:00:40]}  Kb6 {[%clk 0:00:39]} 35. Nc4+ {[%clk 0:00:39]}  Ka6 {[%clk 0:00:34]} 36. Nd6 {[%clk 0:00:33]}  Rb8 {[%clk 0:00:23]} 37. c7 {[%clk 0:00:29]}  Rb2+ {[%clk 0:00:22]} 38. Kd3 {[%clk 0:00:28]}  Bxd5 {[%clk 0:00:19]} 39. c8=Q+ {[%clk 0:00:28]}  Ka5 {[%clk 0:00:17]} 40. Qc5+ {[%clk 0:00:26]}  Ka4 {[%clk 0:00:16]} 41. Qxd5 {[%clk 0:00:26]} 1-0


[Site "https://www.chess.com"]

[Event "Titled Tuesday Blitz March 07 Early 2023"]
[White "Castillo Pena, Patricia Evarista"]
[Black "Markus, Robert"]
[WhiteFideId "6412106"]
[BlackFideId "921637"]
[WhiteElo "1919"]
[BlackElo "2623"]
[Result "0-1"]
[Round "02"]
[TimeControl "180+2"]
[Date "2023.03.07"]
[WhiteClock "0:01:16"]
[BlackClock "0:00:21"]

1. d4 {[%clk 0:03:00]}  Nf6 {[%clk 0:02:59]} 2. Nf3 {[%clk 0:03:00]}  e6 {[%clk 0:02:57]} 3. e3 {[%clk 0:02:59]}  d5 {[%clk 0:02:57]} 4. Bd3 {[%clk 0:02:59]}  c5 {[%clk 0:02:57]} 5. b3 {[%clk 0:02:59]}  Nc6 {[%clk 0:02:56]} 6. Bb2 {[%clk 0:02:59]}  h5 {[%clk 0:02:51]} 7. Nbd2 {[%clk 0:02:54]}  h4 {[%clk 0:02:49]} 8. h3 {[%clk 0:02:54]}  Bd6 {[%clk 0:02:45]} 9. a3 {[%clk 0:02:52]}  cxd4 {[%clk 0:02:45]} 10. exd4 {[%clk 0:02:52]}  Bd7 {[%clk 0:02:37]} 11. Qe2 {[%clk 0:02:52]}  Rc8 {[%clk 0:02:36]} 12. c4 {[%clk 0:02:50]}  Ne7 {[%clk 0:02:35]} 13. Ne5 {[%clk 0:02:48]}  b6 {[%clk 0:02:13]} 14. O-O {[%clk 0:02:42]}  a5 {[%clk 0:02:02]} 15. Rfe1 {[%clk 0:02:41]}  a4 {[%clk 0:01:58]} 16. b4 {[%clk 0:02:38]}  dxc4 {[%clk 0:01:58]} 17. Ndxc4 {[%clk 0:02:38]}  Bc7 {[%clk 0:01:52]} 18. Rac1 {[%clk 0:02:33]}  b5 {[%clk 0:01:51]} 19. Nxd7 {[%clk 0:02:29]}  Nxd7 {[%clk 0:01:30]} 20. Ne5 {[%clk 0:02:27]}  Nxe5 {[%clk 0:01:28]} 21. dxe5 {[%clk 0:02:27]}  O-O {[%clk 0:01:25]} 22. Bxb5 {[%clk 0:02:25]}  Ng6 {[%clk 0:01:23]} 23. Red1 {[%clk 0:02:20]}  Qg5 {[%clk 0:01:21]} 24. Bd7 {[%clk 0:01:48]}  Nf4 {[%clk 0:00:54]} 25. Qf3 {[%clk 0:01:37]}  Bxe5 {[%clk 0:00:31]} 26. Bxe5 {[%clk 0:01:37]}  Rxc1 {[%clk 0:00:30]} 27. Rxc1 {[%clk 0:01:17]}  Qxe5 {[%clk 0:00:26]} 28. Rc5 {[%clk 0:01:16]}  Qe1+ {[%clk 0:00:21]} 29. Kh2 {[%clk 0:01:16]}  Ne2 {[%clk 0:00:21]} 0-1


[Site "https://www.chess.com"]

[Event "Titled Tuesday Blitz March 07 Early 2023"]
[White "Leve, Nitai"]
[Black "Lohani, Sujana"]
[WhiteFideId "2006898"]
[BlackFideId "12311987"]
[WhiteElo "2144"]
[BlackElo "1718"]
[Result "1-0"]
[Round "02"]
[TimeControl "180+2"]
[Date "2023.03.07"]
[WhiteClock "0:00:15"]
[BlackClock "0:00:01"]

1. e4 {[%clk 0:03:00]}  g6 {[%clk 0:03:00]} 2. d4 {[%clk 0:02:57]}  Bg7 {[%clk 0:03:01]} 3. Nc3 {[%clk 0:02:55]}  d6 {[%clk 0:03:01]} 4. f4 {[%clk 0:02:54]}  Nf6 {[%clk 0:03:01]} 5. Nf3 {[%clk 0:02:53]}  O-O {[%clk 0:03:00]} 6. Bd3 {[%clk 0:02:53]}  c5 {[%clk 0:02:57]} 7. dxc5 {[%clk 0:02:52]}  dxc5 {[%clk 0:02:55]} 8. O-O {[%clk 0:02:51]}  Bg4 {[%clk 0:02:52]} 9. h3 {[%clk 0:02:44]}  Bxf3 {[%clk 0:02:52]} 10. Qxf3 {[%clk 0:02:45]}  c4 {[%clk 0:02:51]} 11. Be2 {[%clk 0:02:43]}  Nc6 {[%clk 0:02:44]} 12. e5 {[%clk 0:02:29]}  Nd4 {[%clk 0:02:26]} 13. Qxb7 {[%clk 0:02:23]}  Nd7 {[%clk 0:02:11]} 14. Bxc4 {[%clk 0:02:13]}  Nxc2 {[%clk 0:02:06]} 15. Rb1 {[%clk 0:02:12]}  Nc5 {[%clk 0:01:54]} 16. Qd5 {[%clk 0:02:02]}  Qxd5 {[%clk 0:01:48]} 17. Nxd5 {[%clk 0:02:03]}  e6 {[%clk 0:01:41]} 18. Ne3 {[%clk 0:02:01]}  Nxe3 {[%clk 0:01:33]} 19. Bxe3 {[%clk 0:02:02]}  Rfc8 {[%clk 0:01:29]} 20. Rfc1 {[%clk 0:01:49]}  Bf8 {[%clk 0:01:15]} 21. b4 {[%clk 0:01:44]}  Na4 {[%clk 0:01:12]} 22. a3 {[%clk 0:01:35]}  Nb6 {[%clk 0:01:12]} 23. Ba6 {[%clk 0:01:34]}  Rxc1+ {[%clk 0:01:05]} 24. Rxc1 {[%clk 0:01:35]}  Nd5 {[%clk 0:01:04]} 25. Bb7 {[%clk 0:01:21]}  Rd8 {[%clk 0:00:56]} 26. Bxd5 {[%clk 0:01:17]}  Rxd5 {[%clk 0:00:52]} 27. Bxa7 {[%clk 0:01:16]}  Rd3 {[%clk 0:00:51]} 28. Rc8 {[%clk 0:00:31]}  Kg7 {[%clk 0:00:41]} 29. b5 {[%clk 0:00:26]}  Rxa3 {[%clk 0:00:37]} 30. b6 {[%clk 0:00:22]}  Rb3 {[%clk 0:00:33]} 31. Rc7 {[%clk 0:00:16]}  Rb5 {[%clk 0:00:25]} 32. b7 {[%clk 0:00:15]}  Bb4 {[%clk 0:00:05]} 33. b8=Q {[%clk 0:00:14]}  Rxb8 {[%clk 0:00:05]} 34. Bxb8 {[%clk 0:00:15]}  Bd2 {[%clk 0:00:04]} 35. g3 {[%clk 0:00:14]}  Be1 {[%clk 0:00:04]} 36. Kg2 {[%clk 0:00:14]}  h5 {[%clk 0:00:03]} 37. Rb7 {[%clk 0:00:14]}  h4 {[%clk 0:00:03]} 38. g4 {[%clk 0:00:14]}  Bg3 {[%clk 0:00:02]} 39. Kf3 {[%clk 0:00:15]}  Be1 {[%clk 0:00:01]} 40. Bd6 {[%clk 0:00:15]}  Bc3 {[%clk 0:00:01]} 41. Be7 {[%clk 0:00:15]} 1-0


[Site "https://www.chess.com"]

[Event "Titled Tuesday Blitz March 07 Early 2023"]
[White "Fernandez Guillen, Ernesto J."]
[Black "Erigaisi Arjun"]
[WhiteFideId "3512428"]
[BlackFideId "35009192"]
[WhiteElo "2423"]
[BlackElo "2737"]
[Result "0-1"]
[Round "03"]
[TimeControl "180+2"]
[Date "2023.03.07"]
[WhiteClock "0:00:06"]
[BlackClock "0:00:15"]

1. e4 {[%clk 0:02:53]}  c6 {[%clk 0:02:55]} 2. d4 {[%clk 0:02:51]}  d5 {[%clk 0:02:55]} 3. e5 {[%clk 0:02:52]}  Bf5 {[%clk 0:02:54]} 4. c3 {[%clk 0:02:51]}  e6 {[%clk 0:02:51]} 5. Bd3 {[%clk 0:02:50]}  Bxd3 {[%clk 0:02:48]} 6. Qxd3 {[%clk 0:02:51]}  c5 {[%clk 0:02:48]} 7. Ne2 {[%clk 0:02:51]}  Nc6 {[%clk 0:02:48]} 8. O-O {[%clk 0:02:49]}  Nge7 {[%clk 0:02:45]} 9. Nd2 {[%clk 0:02:46]}  Nf5 {[%clk 0:02:44]} 10. Nf3 {[%clk 0:02:43]}  Be7 {[%clk 0:02:39]} 11. g4 {[%clk 0:02:15]}  Nh4 {[%clk 0:02:36]} 12. Nxh4 {[%clk 0:02:15]}  Bxh4 {[%clk 0:02:37]} 13. f4 {[%clk 0:02:16]}  Qb6 {[%clk 0:02:28]} 14. Be3 {[%clk 0:02:13]}  Be7 {[%clk 0:02:21]} 15. f5 {[%clk 0:02:08]}  O-O-O {[%clk 0:02:20]} 16. fxe6 {[%clk 0:02:08]}  fxe6 {[%clk 0:02:21]} 17. Rf7 {[%clk 0:02:06]}  Qxb2 {[%clk 0:02:09]} 18. Rb1 {[%clk 0:02:03]}  c4 {[%clk 0:02:10]} 19. Qd1 {[%clk 0:01:50]}  Qxa2 {[%clk 0:02:09]} 20. Nf4 {[%clk 0:01:48]}  Rdf8 {[%clk 0:01:57]} 21. Rxf8+ {[%clk 0:01:38]}  Rxf8 {[%clk 0:01:58]} 22. Nxe6 {[%clk 0:01:39]}  Rf7 {[%clk 0:01:50]} 23. Rb5 {[%clk 0:01:26]}  Bh4 {[%clk 0:01:37]} 24. Nf4 {[%clk 0:00:30]}  Rxf4 {[%clk 0:01:31]} 25. Bxf4 {[%clk 0:00:28]}  Qf2+ {[%clk 0:01:31]} 26. Kh1 {[%clk 0:00:29]}  Qxf4 {[%clk 0:01:32]} 27. Qe2 {[%clk 0:00:23]}  Qc1+ {[%clk 0:01:16]} 28. Kg2 {[%clk 0:00:23]}  Qxc3 {[%clk 0:01:16]} 29. Rxd5 {[%clk 0:00:23]}  Nxd4 {[%clk 0:01:16]} 30. Qf1 {[%clk 0:00:09]}  Be7 {[%clk 0:01:06]} 31. Qf2 {[%clk 0:00:08]}  Nc6 {[%clk 0:00:57]} 32. e6 {[%clk 0:00:09]}  Qf6 {[%clk 0:00:41]} 33. Qe2 {[%clk 0:00:08]}  c3 {[%clk 0:00:40]} 34. Rd7 {[%clk 0:00:08]}  Bc5 {[%clk 0:00:33]} 35. Rf7 {[%clk 0:00:07]}  Qe5 {[%clk 0:00:29]} 36. Qc4 {[%clk 0:00:07]}  Qd4 {[%clk 0:00:25]} 37. e7 {[%clk 0:00:06]}  Bxe7 {[%clk 0:00:18]} 38. Qe6+ {[%clk 0:00:04]}  Qd7 {[%clk 0:00:18]} 39. Qe4 {[%clk 0:00:05]}  Qd2+ {[%clk 0:00:17]} 40. Kh3 {[%clk 0:00:05]}  c2 {[%clk 0:00:16]} 41. Rxg7 {[%clk 0:00:05]}  c1=Q {[%clk 0:00:15]} 42. Rg8+ {[%clk 0:00:06]}  Kc7 {[%clk 0:00:15]} 0-1


[Site "https://www.chess.com"]

[Event "Titled Tuesday Blitz March 07 Early 2023"]
[White "Bolourchifard, Farzad"]
[Black "Pranav, V"]
[WhiteFideId "12510084"]
[BlackFideId "25060783"]
[WhiteElo "2317"]
[BlackElo "2500"]
[Result "0-1"]
[Round "03"]
[TimeControl "180+2"]
[Date "2023.03.07"]
[WhiteClock "0:01:05"]
[BlackClock "0:01:20"]

1. e4 {[%clk 0:03:00]}  e5 {[%clk 0:02:59]} 2. Nf3 {[%clk 0:03:01]}  Nc6 {[%clk 0:02:59]} 3. Bc4 {[%clk 0:03:01]}  Nf6 {[%clk 0:02:59]} 4. d3 {[%clk 0:03:02]}  h6 {[%clk 0:02:59]} 5. O-O {[%clk 0:03:03]}  d6 {[%clk 0:02:58]} 6. Re1 {[%clk 0:03:03]}  g6 {[%clk 0:02:58]} 7. c3 {[%clk 0:03:03]}  Bg7 {[%clk 0:02:59]} 8. Nbd2 {[%clk 0:03:04]}  O-O {[%clk 0:02:58]} 9. Nf1 {[%clk 0:03:05]}  Be6 {[%clk 0:02:57]} 10. Bb5 {[%clk 0:02:58]}  Nd7 {[%clk 0:02:53]} 11. d4 {[%clk 0:02:55]}  exd4 {[%clk 0:02:44]} 12. cxd4 {[%clk 0:02:42]}  d5 {[%clk 0:02:43]} 13. e5 {[%clk 0:02:24]}  a6 {[%clk 0:02:39]} 14. Bxc6 {[%clk 0:02:16]}  bxc6 {[%clk 0:02:40]} 15. b3 {[%clk 0:02:16]}  Re8 {[%clk 0:02:28]} 16. Ba3 {[%clk 0:02:15]}  a5 {[%clk 0:02:26]} 17. Rc1 {[%clk 0:02:15]}  Ra6 {[%clk 0:02:22]} 18. Ne3 {[%clk 0:01:44]}  h5 {[%clk 0:02:23]} 19. Rc3 {[%clk 0:01:43]}  a4 {[%clk 0:02:21]} 20. b4 {[%clk 0:01:38]}  Nf8 {[%clk 0:02:12]} 21. Bc1 {[%clk 0:01:38]}  a3 {[%clk 0:02:00]} 22. Rxa3 {[%clk 0:01:29]}  Rb6 {[%clk 0:01:59]} 23. Nc2 {[%clk 0:01:25]}  Nh7 {[%clk 0:01:52]} 24. Rc3 {[%clk 0:01:23]}  Qa8 {[%clk 0:01:52]} 25. a3 {[%clk 0:01:23]}  Bd7 {[%clk 0:01:43]} 26. Na1 {[%clk 0:01:23]}  Qd8 {[%clk 0:01:36]} 27. Nb3 {[%clk 0:01:23]}  Bf5 {[%clk 0:01:27]} 28. Na5 {[%clk 0:01:21]}  Qd7 {[%clk 0:01:26]} 29. Be3 {[%clk 0:01:06]}  Ra8 {[%clk 0:01:22]} 30. Nd2 {[%clk 0:01:05]}  h4 {[%clk 0:01:20]} 0-1


[Site "https://www.chess.com"]

[Event "Titled Tuesday Blitz March 07 Early 2023"]
[White "Msellek, Ilyass"]
[Black "Hakobyan, Aram"]
[WhiteFideId "675938"]
[BlackFideId "13306677"]
[WhiteElo "2287"]
[BlackElo "2563"]
[Result "0-1"]
[Round "03"]
[TimeControl "180+2"]
[Date "2023.03.07"]
[WhiteClock "0:00:10"]
[BlackClock "0:01:21"]

1. d4 {[%clk 0:02:54]}  g6 {[%clk 0:03:00]} 2. Nf3 {[%clk 0:02:54]}  Bg7 {[%clk 0:03:01]} 3. Nc3 {[%clk 0:02:55]}  c5 {[%clk 0:02:58]} 4. dxc5 {[%clk 0:02:50]}  Bxc3+ {[%clk 0:02:58]} 5. bxc3 {[%clk 0:02:51]}  Qa5 {[%clk 0:02:58]} 6. e4 {[%clk 0:02:50]}  Nf6 {[%clk 0:02:57]} 7. Bd3 {[%clk 0:02:49]}  Qxc5 {[%clk 0:02:52]} 8. O-O {[%clk 0:02:47]}  d6 {[%clk 0:02:52]} 9. Be3 {[%clk 0:02:47]}  Qc7 {[%clk 0:02:51]} 10. c4 {[%clk 0:02:47]}  Bg4 {[%clk 0:02:48]} 11. h3 {[%clk 0:02:39]}  Bxf3 {[%clk 0:02:48]} 12. Qxf3 {[%clk 0:02:40]}  Nbd7 {[%clk 0:02:48]} 13. Qe2 {[%clk 0:02:37]}  O-O {[%clk 0:02:40]} 14. f4 {[%clk 0:02:36]}  Nc5 {[%clk 0:02:37]} 15. Bd4 {[%clk 0:02:37]}  Nfd7 {[%clk 0:02:34]} 16. f5 {[%clk 0:02:24]}  Ne5 {[%clk 0:02:33]} 17. Qe3 {[%clk 0:02:04]}  f6 {[%clk 0:02:15]} 18. Qh6 {[%clk 0:02:00]}  Nf7 {[%clk 0:02:11]} 19. Qh4 {[%clk 0:01:51]}  g5 {[%clk 0:02:11]} 20. Qh5 {[%clk 0:01:49]}  Nd7 {[%clk 0:01:56]} 21. h4 {[%clk 0:01:46]}  Nde5 {[%clk 0:01:46]} 22. Rae1 {[%clk 0:01:34]}  g4 {[%clk 0:01:42]} 23. Rf4 {[%clk 0:01:24]}  Kh8 {[%clk 0:01:40]} 24. Be2 {[%clk 0:01:21]}  Rg8 {[%clk 0:01:37]} 25. c3 {[%clk 0:01:00]}  Rg7 {[%clk 0:01:36]} 26. Kh1 {[%clk 0:00:50]}  Rag8 {[%clk 0:01:35]} 27. Kh2 {[%clk 0:00:18]}  d5 {[%clk 0:01:25]} 28. Kh1 {[%clk 0:00:13]}  Nf3 {[%clk 0:01:23]} 29. Rxg4 {[%clk 0:00:10]}  Qh2# {[%clk 0:01:21]} 0-1


[Site "https://www.chess.com"]

[Event "Titled Tuesday Blitz March 07 Early 2023"]
[White "Matlakov, Maxim"]
[Black "Korchmar, Vasiliy"]
[WhiteFideId "4168003"]
[BlackFideId "24131750"]
[WhiteElo "2666"]
[BlackElo "2370"]
[Result "1-0"]
[Round "03"]
[TimeControl "180+2"]
[Date "2023.03.07"]
[WhiteClock "0:00:05"]
[BlackClock "0:00:01"]

1. e4 {[%clk 0:03:00]}  c5 {[%clk 0:03:00]} 2. Nf3 {[%clk 0:03:00]}  d6 {[%clk 0:03:00]} 3. Bb5+ {[%clk 0:02:59]}  Nd7 {[%clk 0:03:00]} 4. O-O {[%clk 0:02:59]}  a6 {[%clk 0:03:00]} 5. Bxd7+ {[%clk 0:02:59]}  Bxd7 {[%clk 0:03:01]} 6. c3 {[%clk 0:02:59]}  Nf6 {[%clk 0:03:01]} 7. Re1 {[%clk 0:02:59]}  e6 {[%clk 0:03:01]} 8. d4 {[%clk 0:02:59]}  Be7 {[%clk 0:02:54]} 9. e5 {[%clk 0:02:58]}  dxe5 {[%clk 0:02:50]} 10. dxe5 {[%clk 0:02:59]}  Nd5 {[%clk 0:02:50]} 11. c4 {[%clk 0:02:56]}  Nb4 {[%clk 0:02:49]} 12. a3 {[%clk 0:02:51]}  Nc6 {[%clk 0:02:49]} 13. Nc3 {[%clk 0:02:51]}  O-O {[%clk 0:02:42]} 14. Ne4 {[%clk 0:02:47]}  Na5 {[%clk 0:02:33]} 15. Qc2 {[%clk 0:02:43]}  b5 {[%clk 0:02:16]} 16. Nfg5 {[%clk 0:02:34]}  g6 {[%clk 0:02:11]} 17. b3 {[%clk 0:02:13]}  bxc4 {[%clk 0:02:06]} 18. bxc4 {[%clk 0:02:14]}  Rb8 {[%clk 0:01:58]} 19. Rd1 {[%clk 0:01:55]}  Nb3 {[%clk 0:01:47]} 20. Rb1 {[%clk 0:01:43]}  Nd4 {[%clk 0:01:46]} 21. Rxb8 {[%clk 0:01:39]}  Qxb8 {[%clk 0:01:47]} 22. Qd3 {[%clk 0:01:29]}  Qxe5 {[%clk 0:01:47]} 23. Nf3 {[%clk 0:01:05]}  Nxf3+ {[%clk 0:01:44]} 24. gxf3 {[%clk 0:01:06]}  Bc6 {[%clk 0:01:37]} 25. Bh6 {[%clk 0:01:05]}  Re8 {[%clk 0:01:29]} 26. Qe3 {[%clk 0:01:04]}  Qh5 {[%clk 0:01:04]} 27. Bf4 {[%clk 0:00:42]}  Bxe4 {[%clk 0:00:20]} 28. Qxe4 {[%clk 0:00:42]}  Bf6 {[%clk 0:00:21]} 29. Be3 {[%clk 0:00:40]}  Be5 {[%clk 0:00:18]} 30. Bf4 {[%clk 0:00:31]}  Bd4 {[%clk 0:00:12]} 31. Be3 {[%clk 0:00:29]}  Be5 {[%clk 0:00:09]} 32. Bf4 {[%clk 0:00:29]}  Bd4 {[%clk 0:00:09]} 33. Rb1 {[%clk 0:00:23]}  Qh4 {[%clk 0:00:07]} 34. Bg3 {[%clk 0:00:18]}  Qf6 {[%clk 0:00:05]} 35. Rb7 {[%clk 0:00:16]}  Rd8 {[%clk 0:00:04]} 36. Bh4 {[%clk 0:00:15]}  g5 {[%clk 0:00:04]} 37. Bg3 {[%clk 0:00:15]}  h6 {[%clk 0:00:03]} 38. Kg2 {[%clk 0:00:16]}  Kg7 {[%clk 0:00:03]} 39. h4 {[%clk 0:00:16]}  Qg6 {[%clk 0:00:02]} 40. hxg5 {[%clk 0:00:13]}  hxg5 {[%clk 0:00:02]} 41. Qc6 {[%clk 0:00:13]}  Rh8 {[%clk 0:00:01]} 42. Qe4 {[%clk 0:00:08]}  Qh6 {[%clk 0:00:01]} 43. Kf1 {[%clk 0:00:04]}  Qh1+ {[%clk 0:00:02]} 44. Ke2 {[%clk 0:00:05]}  Qc1 {[%clk 0:00:03]} 45. Be5+ {[%clk 0:00:04]}  Bxe5 {[%clk 0:00:01]} 46. Qxe5+ {[%clk 0:00:05]} 1-0


[Site "https://www.chess.com"]